[Event "Teplice Open 2019"]
[Site "Teplice"]
[Date "2019.06.21"]
[Round "7.7"]
[White "Blohberger, Felix"]
[Black "Hracek, Zbynek"]
[Result "1/2-1/2"]
[ECO "B33"]
[WhiteElo "2475"]
[BlackElo "2582"]
[Annotator "ChessBase"]
[PlyCount "60"]
[EventDate "2019.06.15"]
[EventType "swiss"]
[EventCountry "CZE"]
[SourceTitle "playchess.com"]
[Source "ChessBase"]
[SourceQuality "1"]
[TimeControl "40/5400+30:1800+30"]

1. e4 {[%emt 0:00:00]} c5 {[%emt 0:00:00]} 2. Nf3 {[%emt 0:00:00]} Nc6 {[%emt 0:00:00]} 3. d4 {[%emt 0:00:00]} cxd4 {[%emt 0:00:00]} 4. Nxd4 {[%emt 0:00:04]} Nf6 {[%emt 0:00:00]} 5. Nc3 {[%emt 0:00:06]} e5 {[%emt 0:00:22]} 6. Ndb5 {[%emt 0:00:08]} d6 {[%emt 0:00:06]} 7. Bg5 {[%emt 0:00:20]} a6 {[%emt 0:00:06]} 8. Na3 {[%emt 0:00:04]} b5 {[%emt 0:00:04]} 9. Nd5 {[%emt 0:00:16]} Be7 {[%emt 0:00:06]} 10. Bxf6 {[%emt 0:00:23]} Bxf6 {[%emt 0:00:02]} 11. g3 {[%emt 0:00:18]} Bg5 {[%emt 0:06:13]} 12. h4 {[%emt 0:00:24]} Bh6 {[%emt 0:00:17]} 13. Bh3 {[%emt 0:00:06]} Bb7 {[%emt 0:24:43]} 14. O-O {[%emt 0:09:32]} O-O {[%emt 0:00:08]} 15. c3 {[%emt 0:14:53]} Ne7 {[%emt 0:02:54]} 16. Nxe7+ {[%emt 0:00:58]} Qxe7 {[%emt 0:00:02]} 17. Bg2 {[%emt 0:00:31]} Bc6 {[%emt 0:04:08]} 18. Qd3 {[%emt 0:08:51]} Rfd8 {[%emt 0:06:25]} 19. Nc2 {[%emt 0:06:22]} a5 {[%emt 0:00:20]} 20. Ne3 {[%emt 0:04:02]} Bxe3 {[%emt 0:00:10]} 21. Qxe3 {[%emt 0:00:03]} Qa7 {[%emt 0:00:10]} 22. Qxa7 {[%emt 0:01:35]} Rxa7 {[%emt 0:00:02]} 23. Rad1 {[%emt 0:00:50]} Kf8 {[%emt 0:00:03]} 24. f4 {[%emt 0:04:30]} Raa8 {[%emt 0:02:02]} 25. Kf2 {[%emt 0:04:48]} Ke7 {[%emt 0:00:07]} 26. Rd2 {[%emt 0:02:25]} h5 {[%emt 0:17:53]} 27. Rfd1 {[%emt 0:02:57]} g6 {[%emt 0:04:21]} 28. fxe5 {[%emt 0:08:47]} dxe5 {[%emt 0:00:44]} 29. Rxd8 {[%emt 0:00:11]} Rxd8 {[%emt 0:00:02]} 30. Rxd8 {[%emt 0:00:07]} Kxd8 {[%emt 0:00:05]} 1/2-1/2

[Event "Teplice Open 2019"]
[Site "Teplice"]
[Date "2019.06.21"]
[Round "7.8"]
[White "Dastan, Muhammed Batuhan"]
[Black "Kraus, Tomas"]
[Result "1/2-1/2"]
[ECO "B33"]
[WhiteElo "2561"]
[BlackElo "2479"]
[Annotator "ChessBase"]
[PlyCount "67"]
[EventDate "2019.06.15"]
[EventType "swiss"]
[EventCountry "CZE"]
[SourceTitle "playchess.com"]
[Source "ChessBase"]
[SourceQuality "1"]
[TimeControl "40/5400+30:1800+30"]

1. e4 {[%emt 0:00:00]} c5 {[%emt 0:00:00]} 2. Nf3 {[%emt 0:00:00]} Nc6 {[%emt 0:00:06]} 3. d4 {[%emt 0:00:00]} cxd4 {[%emt 0:00:04]} 4. Nxd4 {[%emt 0:00:00]} Nf6 {[%emt 0:00:21]} 5. Nc3 {[%emt 0:00:00]} e5 {[%emt 0:00:03]} 6. Ndb5 {[%emt 0:00:04]} d6 {[%emt 0:00:06]} 7. Nd5 {[%emt 0:00:05]} Nxd5 {[%emt 0:00:06]} 8. exd5 {[%emt 0:00:06]} Ne7 {[%emt 0:01:29]} 9. c4 {[%emt 0:00:33]} Ng6 {[%emt 0:01:24]} 10. Qa4 {[%emt 0:01:19]} Bd7 {[%emt 0:00:32]} 11. Qb4 {[%emt 0:00:08]} Bf5 {[%emt 0:00:46]} 12. h4 {[%emt 0:03:23]} h5 {[%emt 0:00:05]} 13. Qa4 {[%emt 0:05:40]} Bd7 {[%emt 0:00:19]} 14. Qb3 {[%emt 0:00:28]} a6 {[%emt 0:10:24]} 15. Bg5 {[%emt 0:17:13]} f6 {[%emt 0:08:19]} 16. Bd3 {[%emt 0:06:26]} Kf7 {[%emt 0:00:05]} 17. Qc2 {[%emt 0:01:15]} e4 {[%emt 0:01:18]} 18. Bxe4 {[%emt 0:00:44]} Ne5 {[%emt 0:00:15]} 19. f4 {[%emt 0:08:34]} Nxc4 {[%emt 0:07:57]} 20. Bg6+ {[%emt 0:05:51]} Kg8 {[%emt 0:00:07]} 21. Qxc4 {[%emt 0:01:06]} axb5 {[%emt 0:04:42]} 22. Qd3 {[%emt 0:09:13]} Be8 {[%emt 0:08:12]} 23. O-O {[%emt 0:06:47]} Bxg6 {[%emt 0:03:42]} 24. Qxg6 {[%emt 0:00:23]} Qe8 {[%emt 0:00:02]} 25. Qd3 {[%emt 0:03:06]} Qd7 {[%emt 0:11:20]} 26. Rf3 {[%emt 0:10:36]} Be7 {[%emt 0:06:09]} 27. Re1 {[%emt 0:02:16]} Rf8 {[%emt 0:01:15]} 28. Re6 {[%emt 0:01:52]} Bd8 {[%emt 0:03:50]} 29. Kh1 {[%emt 0:02:05]} Rh7 {[%emt 0:07:05]} 30. Qg6 {[%emt 0:00:47]} Qf7 {[%emt 0:04:19]} 31. Qe4 {[%emt 0:01:45]} Qd7 {[%emt 0:01:36]} 32. Qg6 {[%emt 0:01:54]} Qf7 {[%emt 0:00:05]} 33. Qe4 {[%emt 0:12:17]} Qd7 {[%emt 0:00:37]} 34. Qg6 {[%emt 0:00:24]} 1/2-1/2

[Event "Teplice Open 2019"]
[Site "Teplice"]
[Date "2019.06.21"]
[Round "7.9"]
[White "Stocek, Jiri"]
[Black "Warmerdam, Max"]
[Result "1-0"]
[ECO "D85"]
[WhiteElo "2551"]
[BlackElo "2475"]
[Annotator "ChessBase"]
[PlyCount "53"]
[EventDate "2019.06.15"]
[EventType "swiss"]
[EventCountry "CZE"]
[SourceTitle "playchess.com"]
[Source "ChessBase"]
[SourceQuality "1"]
[TimeControl "40/5400+30:1800+30"]

1. d4 {[%emt 0:05:16]} Nf6 {[%emt 0:00:00]} 2. c4 {[%emt 0:01:02]} g6 {[%emt 0:00:00]} 3. Nc3 {[%emt 0:00:10]} d5 {[%emt 0:00:00]} 4. Nf3 {[%emt 0:01:45]} Bg7 {[%emt 0:00:23]} 5. cxd5 {[%emt 0:02:17]} Nxd5 {[%emt 0:00:06]} 6. e4 {[%emt 0:00:04]} Nxc3 {[%emt 0:00:06]} 7. bxc3 {[%emt 0:00:06]} c5 {[%emt 0:00:04]} 8. Be3 {[%emt 0:02:08]} Qa5 {[%emt 0:00:50]} 9. Nd2 {[%emt 0:02:44]} cxd4 {[%emt 0:01:31]} 10. Nc4 {[%emt 0:01:11]} Qd8 {[%emt 0:00:34]} 11. cxd4 {[%emt 0:00:07]} O-O {[%emt 0:00:16]} 12. Rc1 {[%emt 0:02:02]} f5 {[%emt 0:01:20]} 13. Ne5 {[%emt 0:06:56]} f4 {[%emt 0:32:05]} 14. Qb3+ {[%emt 0:09:16]} e6 {[%emt 0:04:51]} 15. Bd2 {[%emt 0:11:31]} Nc6 {[%emt 0:19:29]} 16. Nxc6 {[%emt 0:05:06]} bxc6 {[%emt 0:00:40]} 17. Be2 {[%emt 0:08:09]} Qxd4 {[%emt 0:01:04]} 18. Bc3 {[%emt 0:00:51]} Qxe4 {[%emt 0:09:22]} 19. Bxg7 {[%emt 0:04:06]} Kxg7 {[%emt 0:00:02]} 20. Qb2+ {[%emt 0:00:16]} e5 {[%emt 0:00:29]} 21. O-O {[%emt 0:00:26]} Qd4 {[%emt 0:10:07]} 22. Qa3 {[%emt 0:00:52]} e4 {[%emt 0:01:14]} 23. Rxc6 {[%emt 0:05:01]} Bf5 {[%emt 0:14:47]} 24. Rc7+ {[%emt 0:02:27]} Kh8 {[%emt 0:01:16]} 25. Rd1 {[%emt 0:09:59]} Qe5 {[%emt 0:00:21]} 26. Rxa7 {[%emt 0:00:33]} Rxa7 {[%emt 0:00:35]} 27. Qxf8# {[%emt 0:00:08]} 1-0

[Event "Teplice Open 2019"]
[Site "Teplice"]
[Date "2019.06.21"]
[Round "7.10"]
[White "Erenberg, Ariel"]
[Black "Babula, Vlastimil"]
[Result "1/2-1/2"]
[ECO "B41"]
[WhiteElo "2434"]
[BlackElo "2550"]
[Annotator "ChessBase"]
[PlyCount "143"]
[EventDate "2019.06.15"]
[EventType "swiss"]
[EventCountry "CZE"]
[SourceTitle "playchess.com"]
[Source "ChessBase"]
[SourceQuality "1"]
[TimeControl "40/5400+30:1800+30"]

1. e4 {[%emt 0:00:00]} c5 {[%emt 0:00:00]} 2. Nf3 {[%emt 0:00:00]} e6 {[%emt 0:00:23]} 3. d4 {[%emt 0:00:02]} cxd4 {[%emt 0:00:06]} 4. Nxd4 {[%emt 0:00:02]} a6 {[%emt 0:00:26]} 5. c4 {[%emt 0:00:20]} Nf6 {[%emt 0:00:41]} 6. Nc3 {[%emt 0:00:11]} Bb4 {[%emt 0:00:45]} 7. Qd3 {[%emt 0:01:04]} Qc7 {[%emt 0:00:32]} 8. a3 {[%emt 0:01:15]} Be7 {[%emt 0:00:26]} 9. Qg3 {[%emt 0:01:06]} d6 {[%emt 0:00:07]} 10. Be3 {[%emt 0:18:49]} Nbd7 {[%emt 0:05:13]} 11. Be2 {[%emt 0:01:49]} b6 {[%emt 0:03:51]} 12. O-O {[%emt 0:07:15]} O-O {[%emt 0:14:04]} 13. Nd5 {[%emt 0:05:11]} Nxd5 {[%emt 0:02:54]} 14. exd5 {[%emt 0:25:37]} Nf6 {[%emt 0:09:56]} 15. b4 {[%emt 0:07:50]} Re8 {[%emt 0:06:59]} 16. Bf3 {[%emt 0:07:41]} e5 {[%emt 0:02:01]} 17. Nc6 {[%emt 0:01:06]} Bf5 {[%emt 0:07:02]} 18. Rac1 {[%emt 0:01:46]} Bf8 {[%emt 0:02:23]} 19. Rfd1 {[%emt 0:00:24]} a5 {[%emt 0:04:03]} 20. bxa5 {[%emt 0:05:47]} bxa5 {[%emt 0:00:08]} 21. Rd2 {[%emt 0:03:42]} Bd7 {[%emt 0:05:07]} 22. Bg5 {[%emt 0:05:45]} e4 {[%emt 0:05:43]} 23. Bxf6 {[%emt 0:00:07]} exf3 {[%emt 0:00:20]} 24. Bb2 {[%emt 0:04:05]} Bxc6 {[%emt 0:05:41]} 25. dxc6 {[%emt 0:00:01]} Qxc6 {[%emt 0:01:26]} 26. Qxf3 {[%emt 0:00:50]} Qxc4 {[%emt 0:00:57]} 27. g3 {[%emt 0:00:08]} Qe4 {[%emt 0:05:43]} 28. Qxe4 {[%emt 0:00:05]} Rxe4 {[%emt 0:00:05]} 29. Rd5 {[%emt 0:00:03]} Re2 {[%emt 0:02:10]} 30. Bc3 {[%emt 0:01:34]} Ra2 {[%emt 0:01:22]} 31. Bxa5 {[%emt 0:00:57]} Rxa3 {[%emt 0:00:20]} 32. Bb4 {[%emt 0:00:36]} Ra1 {[%emt 0:01:38]} 33. Rxa1 {[%emt 0:00:07]} Rxa1+ {[%emt 0:00:05]} 34. Kg2 {[%emt 0:00:01]} Ra7 {[%emt 0:02:19]} 35. Rd2 {[%emt 0:01:03]} Rd7 {[%emt 0:00:25]} 36. Kf3 {[%emt 0:00:21]} f5 {[%emt 0:00:35]} 37. Ke3 {[%emt 0:00:40]} Kf7 {[%emt 0:00:40]} 38. Kd4 {[%emt 0:01:00]} Rb7 {[%emt 0:00:45]} 39. Ba3 {[%emt 0:00:30]} Rb3 {[%emt 0:01:07]} 40. Rd3 {[%emt 0:00:21]} Rxd3+ {[%emt 0:02:51]} 41. Kxd3 {[%emt 0:30:03]} g5 {[%emt 0:30:42]} 42. h3 {[%emt 0:00:00]} g4 {[%emt 0:00:00]} 43. hxg4 {[%emt 0:00:00]} fxg4 {[%emt 0:00:00]} 44. f3 {[%emt 0:00:00]} d5 {[%emt 0:00:00]} 45. Bb2 {[%emt 0:00:00]} h5 {[%emt 0:00:00]} 46. fxg4 {[%emt 0:00:00]} hxg4 {[%emt 0:00:00]} 47. Bd4 {[%emt 0:00:00]} Ke6 {[%emt 0:00:00]} 48. Bf2 {[%emt 0:00:00]} Bd6 {[%emt 0:00:00]} 49. Be1 {[%emt 0:00:00]} Be5 {[%emt 0:00:00]} 50. Bf2 {[%emt 0:00:00]} Kd6 {[%emt 0:00:00]} 51. Be1 {[%emt 0:00:00]} Kc5 {[%emt 0:00:00]} 52. Bf2+ {[%emt 0:00:00]} Kb4 {[%emt 0:00:00]} 53. Be1+ {[%emt 0:00:00]} Ka4 {[%emt 0:00:00]} 54. Bf2 {[%emt 0:00:04]} Kb3 {[%emt 0:00:00]} 55. Be1 {[%emt 0:03:51]} Kb2 {[%emt 0:00:00]} 56. Bd2 {[%emt 0:00:35]} Bxg3 {[%emt 0:00:00]} 57. Kd4 {[%emt 0:00:08]} Kc2 {[%emt 0:00:33]} 58. Bg5 {[%emt 0:00:06]} Bc7 {[%emt 0:08:21]} 59. Kxd5 {[%emt 0:00:36]} Kd3 {[%emt 0:00:52]} 60. Bh4 {[%emt 0:00:06]} Ke3 {[%emt 0:00:14]} 61. Ke6 {[%emt 0:00:20]} Ke4 {[%emt 0:00:35]} 62. Be1 {[%emt 0:01:28]} Be5 {[%emt 0:00:37]} 63. Bh4 {[%emt 0:00:50]} Kf4 {[%emt 0:00:18]} 64. Be1 {[%emt 0:01:06]} Bd4 {[%emt 0:01:24]} 65. Bh4 {[%emt 0:00:38]} Ke4 {[%emt 0:00:17]} 66. Be1 {[%emt 0:00:22]} Kf4 {[%emt 0:01:08]} 67. Bh4 {[%emt 0:00:08]} Bg1 {[%emt 0:00:13]} 68. Be1 {[%emt 0:01:16]} Bh2 {[%emt 0:00:32]} 69. Kf6 {[%emt 0:02:05]} Bg3 {[%emt 0:00:12]} 70. Bd2+ {[%emt 0:00:10]} Kf3 {[%emt 0:00:09]} 71. Kf5 {[%emt 0:00:04]} Bh2 {[%emt 0:01:19]} 72. Be1 {[%emt 0:00:08]} 1/2-1/2

[Event "Teplice Open 2019"]
[Site "Teplice"]
[Date "2019.06.21"]
[Round "7.12"]
[White "Sylvan, Jacob"]
[Black "Shevchenko, Kirill"]
[Result "0-1"]
[ECO "B90"]
[WhiteElo "2312"]
[BlackElo "2539"]
[Annotator "ChessBase"]
[PlyCount "84"]
[EventDate "2019.06.15"]
[EventType "swiss"]
[EventCountry "CZE"]
[SourceTitle "playchess.com"]
[Source "ChessBase"]
[SourceQuality "1"]
[TimeControl "40/5400+30:1800+30"]

1. e4 {[%emt 0:00:00]} c5 {[%emt 0:00:00]} 2. Nf3 {[%emt 0:00:00]} d6 {[%emt 0:00:00]} 3. d4 {[%emt 0:00:00]} cxd4 {[%emt 0:00:00]} 4. Nxd4 {[%emt 0:00:00]} Nf6 {[%emt 0:00:00]} 5. Nc3 {[%emt 0:00:01]} a6 {[%emt 0:00:00]} 6. h3 {[%emt 0:00:25]} e5 {[%emt 0:00:51]} 7. Nde2 {[%emt 0:00:07]} h5 {[%emt 0:00:17]} 8. g3 {[%emt 0:00:37]} Nbd7 {[%emt 0:02:51]} 9. Bg2 {[%emt 0:02:07]} b5 {[%emt 0:02:20]} 10. Nd5 {[%emt 0:03:26]} Nxd5 {[%emt 0:04:45]} 11. Qxd5 {[%emt 0:01:41]} Qc7 {[%emt 0:01:24]} 12. Be3 {[%emt 0:03:49]} Bb7 {[%emt 0:00:43]} 13. Qd2 {[%emt 0:05:13]} Rc8 {[%emt 0:09:57]} 14. Nc3 {[%emt 0:04:17]} h4 {[%emt 0:11:59]} 15. O-O {[%emt 0:08:53]} Nb6 {[%emt 0:03:47]} 16. Bxb6 {[%emt 0:04:47]} Qxb6 {[%emt 0:00:44]} 17. Kh2 {[%emt 0:00:08]} Be7 {[%emt 0:03:34]} 18. a4 {[%emt 0:09:55]} b4 {[%emt 0:14:37]} 19. Nd5 {[%emt 0:01:06]} Bxd5 {[%emt 0:00:07]} 20. exd5 {[%emt 0:00:26]} a5 {[%emt 0:02:06]} 21. Rac1 {[%emt 0:10:29]} O-O {[%emt 0:08:30]} 22. c4 {[%emt 0:06:29]} bxc3 {[%emt 0:08:38]} 23. Rxc3 {[%emt 0:00:56]} Rxc3 {[%emt 0:00:06]} 24. Qxc3 {[%emt 0:01:05]} Rb8 {[%emt 0:03:52]} 25. Qc6 {[%emt 0:04:13]} Bg5 {[%emt 0:04:30]} 26. b3 {[%emt 0:05:52]} Qd8 {[%emt 0:04:45]} 27. Qc2 {[%emt 0:06:37]} g6 {[%emt 0:04:29]} 28. Kh1 {[%emt 0:02:19]} Rb4 {[%emt 0:00:52]} 29. Re1 {[%emt 0:01:26]} Qb6 {[%emt 0:02:21]} 30. gxh4 {[%emt 0:06:33]} Bxh4 {[%emt 0:01:36]} 31. Re3 {[%emt 0:06:32]} Kg7 {[%emt 0:03:27]} 32. Qc6 {[%emt 0:03:25]} Bxf2 {[%emt 0:01:16]} 33. Rf3 {[%emt 0:01:00]} Bc5 {[%emt 0:01:30]} 34. Qd7 {[%emt 0:02:29]} Rf4 {[%emt 0:00:00]} 35. Rxf4 {[%emt 0:00:08]} exf4 {[%emt 0:00:01]} 36. Qb5 {[%emt 0:00:18]} Qxb5 {[%emt 0:01:20]} 37. axb5 {[%emt 0:00:00]} Kf6 {[%emt 0:00:10]} 38. Bf3 {[%emt 0:00:51]} Ke5 {[%emt 0:00:08]} 39. Kg2 {[%emt 0:00:09]} Kd4 {[%emt 0:00:08]} 40. Be2 {[%emt 0:00:19]} Ke3 {[%emt 0:01:27]} 41. Kf1 {[%emt 0:08:43]} f3 {[%emt 0:03:41]} 42. Bc4 {[%emt 0:04:25]} Bb6 {[%emt 0:03:58]} 0-1

[Event "Teplice Open 2019"]
[Site "Teplice"]
[Date "2019.06.21"]
[Round "7.13"]
[White "Dragnev, Valentin"]
[Black "Rubes, Jan"]
[Result "1-0"]
[ECO "A28"]
[WhiteElo "2521"]
[BlackElo "2352"]
[Annotator "ChessBase"]
[PlyCount "129"]
[EventDate "2019.06.15"]
[EventType "swiss"]
[EventCountry "CZE"]
[SourceTitle "playchess.com"]
[Source "ChessBase"]
[SourceQuality "1"]
[TimeControl "40/5400+30:1800+30"]

1. c4 {[%emt 0:00:03]} e5 {[%emt 0:01:14]} 2. Nc3 Nf6 {[%emt 0:00:19]} 3. Nf3 {[%emt 0:00:38]} Nc6 {[%emt 0:01:14]} 4. e3 Bb4 {[%emt 0:00:04]} 5. Qc2 {[%emt 0:00:16]} Bxc3 6. bxc3 {[%emt 0:00:37]} O-O {[%emt 0:01:19]} 7. e4 {[%emt 0:04:28]} d6 {[%emt 0:04:43]} 8. Be2 Ne7 9. O-O Ng6 {[%emt 0:00:56]} 10. d3 {[%emt 0:03:37]} h6 {[%emt 0:19:29]} 11. Re1 {[%emt 0:20:25]} Nh7 {[%emt 0:00:00]} 12. Be3 {[%emt 0:06:24]} f5 13. exf5 {[%emt 0:00:00]} Bxf5 {[%emt 0:00:04]} 14. Nd2 {[%emt 0:00:00]} Kh8 {[%emt 0:00:30]} 15. Rad1 {[%emt 0:00:00]} Nf4 {[%emt 0:00:30]} 16. Bf1 {[%emt 0:00:00]} Qf6 {[%emt 0:00:30]} 17. f3 {[%emt 0:00:09]} Qg6 {[%emt 0:00:30]} 18. Ne4 {[%emt 0:00:30]} Bxe4 {[%emt 0:00:30]} 19. fxe4 {[%emt 0:00:30]} b6 {[%emt 0:00:30]} 20. Kh1 {[%emt 0:00:30]} Rf7 {[%emt 0:00:30]} 21. g3 {[%emt 0:00:30]} Ne6 {[%emt 0:00:30]} 22. Bh3 {[%emt 0:00:30]} Rf6 {[%emt 0:00:30]} 23. Bf5 {[%emt 0:00:30]} Qh5 {[%emt 0:00:30]} 24. Qe2 {[%emt 0:00:30]} Qxe2 {[%emt 0:00:30]} 25. Rxe2 {[%emt 0:00:30]} Re8 {[%emt 0:00:30]} 26. h4 {[%emt 0:00:30]} Nhf8 {[%emt 0:00:30]} 27. Kg2 {[%emt 0:00:30]} h5 {[%emt 0:00:30]} 28. Ree1 {[%emt 0:00:30]} g6 {[%emt 0:00:30]} 29. Bh3 {[%emt 0:00:30]} Kg7 {[%emt 0:00:30]} 30. d4 {[%emt 0:00:30]} Nd7 {[%emt 0:00:30]} 31. Rb1 {[%emt 0:00:30]} Rf7 {[%emt 0:00:30]} 32. a4 {[%emt 0:00:30]} Nf6 {[%emt 0:00:30]} 33. Bg1 {[%emt 0:00:30]} Nd8 {[%emt 0:00:30]} 34. dxe5 {[%emt 0:00:30]} Rxe5 {[%emt 0:00:30]} 35. Bd4 {[%emt 0:00:30]} Ra5 {[%emt 0:00:30]} 36. e5 {[%emt 0:00:30]} dxe5 {[%emt 0:00:30]} 37. Bxe5 {[%emt 0:00:30]} Nc6 {[%emt 0:00:30]} 38. Bf4 {[%emt 0:00:30]} Ng4 {[%emt 0:00:30]} 39. Ra1 {[%emt 0:00:30]} Rc5 {[%emt 0:00:30]} 40. Re4 {[%emt 0:00:30]} Nce5 {[%emt 0:00:30]} 41. Rd1 {[%emt 0:30:30]} g5 {[%emt 0:30:30]} 42. hxg5 {[%emt 0:00:30]} Nxc4 {[%emt 0:00:30]} 43. Rde1 {[%emt 0:00:30]} Nd6 {[%emt 0:00:30]} 44. Re6 {[%emt 0:00:30]} Nc4 {[%emt 0:00:30]} 45. Bxg4 {[%emt 0:00:30]} hxg4 {[%emt 0:00:30]} 46. Rh6 {[%emt 0:00:30]} Ra5 {[%emt 0:00:30]} 47. Re4 {[%emt 0:00:30]} Rxa4 {[%emt 0:00:30]} 48. Be5+ {[%emt 0:00:30]} Kf8 {[%emt 0:00:30]} 49. Bf6 {[%emt 0:00:30]} Ra2+ {[%emt 0:00:30]} 50. Kg1 {[%emt 0:00:30]} Ra1+ {[%emt 0:00:30]} 51. Kf2 {[%emt 0:00:30]} Ra2+ {[%emt 0:00:30]} 52. Ke1 {[%emt 0:00:30]} Ra1+ {[%emt 0:00:30]} 53. Ke2 {[%emt 0:00:30]} Ra2+ {[%emt 0:00:30]} 54. Ke1 {[%emt 0:00:30]} Ra1+ {[%emt 0:00:30]} 55. Ke2 {[%emt 0:00:30]} Ra2+ {[%emt 0:00:30]} 56. Kd1 {[%emt 0:00:30]} Rd7+ {[%emt 0:00:30]} 57. Bd4 {[%emt 0:00:30]} Rxd4+ {[%emt 0:00:30]} 58. Rxd4 {[%emt 0:00:30]} Ne3+ {[%emt 0:00:30]} 59. Kc1 {[%emt 0:00:30]} Rc2+ {[%emt 0:00:30]} 60. Kb1 {[%emt 0:00:30]} Rf2 {[%emt 0:00:30]} 61. Rh7 {[%emt 0:00:30]} Rf7 {[%emt 0:00:30]} 62. Rd8+ {[%emt 0:00:30]} Ke7 {[%emt 0:00:30]} 63. g6 {[%emt 0:00:30]} Kxd8 {[%emt 0:00:30]} 64. Rxf7 {[%emt 0:00:30]} Ke8 {[%emt 0:00:30]} 65. Rf4 {[%emt 0:00:30]} 1-0

[Event "Teplice Open 2019"]
[Site "Teplice"]
[Date "2019.06.21"]
[Round "7.14"]
[White "Greenfeld, Alon"]
[Black "Mazur, Stefan"]
[Result "1-0"]
[ECO "E62"]
[WhiteElo "2513"]
[BlackElo "2426"]
[Annotator "ChessBase"]
[PlyCount "75"]
[EventDate "2019.06.15"]
[EventType "swiss"]
[EventCountry "CZE"]
[SourceTitle "playchess.com"]
[Source "ChessBase"]
[SourceQuality "1"]
[TimeControl "40/5400+30:1800+30"]

1. d4 {[%emt 0:04:48]} Nf6 {[%emt 0:00:00]} 2. c4 {[%emt 0:00:22]} g6 {[%emt 0:00:00]} 3. g3 {[%emt 0:00:55]} Bg7 {[%emt 0:00:10]} 4. Bg2 {[%emt 0:00:23]} O-O {[%emt 0:00:17]} 5. Nc3 {[%emt 0:00:28]} d6 {[%emt 0:00:17]} 6. Nf3 {[%emt 0:00:24]} Nc6 {[%emt 0:00:13]} 7. O-O {[%emt 0:00:28]} e5 {[%emt 0:00:27]} 8. dxe5 {[%emt 0:03:59]} dxe5 {[%emt 0:00:14]} 9. Bg5 {[%emt 0:01:55]} Be6 {[%emt 0:00:12]} 10. Qc1 {[%emt 0:00:27]} Qe8 {[%emt 0:00:30]} 11. Nd2 {[%emt 0:20:09]} h6 {[%emt 0:13:17]} 12. Bxf6 {[%emt 0:05:13]} Bxf6 {[%emt 0:00:06]} 13. Nd5 {[%emt 0:07:10]} Bd8 {[%emt 0:02:13]} 14. Nb3 {[%emt 0:08:08]} Kg7 {[%emt 0:02:42]} 15. Qc3 {[%emt 0:01:05]} f6 {[%emt 0:07:11]} 16. e3 {[%emt 0:05:40]} Bc8 {[%emt 0:04:32]} 17. Nc5 {[%emt 0:06:46]} Ne7 {[%emt 0:05:36]} 18. f4 {[%emt 0:03:18]} Nf5 {[%emt 0:04:12]} 19. Ne4 {[%emt 0:10:25]} c6 {[%emt 0:06:33]} 20. Nb4 {[%emt 0:00:22]} Bc7 {[%emt 0:02:31]} 21. Rae1 {[%emt 0:01:25]} Nd6 {[%emt 0:08:10]} 22. Nxf6 {[%emt 0:04:20]} Rxf6 {[%emt 0:01:50]} 23. fxe5 {[%emt 0:00:06]} Rxf1+ {[%emt 0:00:56]} 24. Rxf1 {[%emt 0:00:08]} Nf5 {[%emt 0:02:18]} 25. e6+ {[%emt 0:02:05]} Kg8 {[%emt 0:01:14]} 26. e4 {[%emt 0:05:34]} Ng7 {[%emt 0:04:40]} 27. Nd5 {[%emt 0:00:28]} cxd5 {[%emt 0:00:18]} 28. exd5 {[%emt 0:00:09]} Bxe6 {[%emt 0:24:02]} 29. dxe6 {[%emt 0:00:28]} Qe7 {[%emt 0:00:05]} 30. Rf7 {[%emt 0:03:10]} Qc5+ {[%emt 0:00:05]} 31. Kh1 {[%emt 0:00:07]} Qe5 {[%emt 0:02:31]} 32. Qxe5 {[%emt 0:00:44]} Bxe5 {[%emt 0:00:54]} 33. Rxb7 {[%emt 0:01:28]} Re8 {[%emt 0:05:28]} 34. Bc6 {[%emt 0:00:15]} Rb8 {[%emt 0:01:52]} 35. Rxa7 {[%emt 0:00:34]} Nf5 {[%emt 0:01:15]} 36. Bd5 {[%emt 0:02:12]} Bf6 {[%emt 0:00:33]} 37. Rf7 {[%emt 0:00:50]} Bg5 {[%emt 0:00:34]} 38. e7 {[%emt 0:00:37]} 1-0

[Event "Teplice Open 2019"]
[Site "Teplice"]
[Date "2019.06.21"]
[Round "7.15"]
[White "Salomon, Johan"]
[Black "Hollan, Petr"]
[Result "1-0"]
[ECO "E71"]
[WhiteElo "2509"]
[BlackElo "2261"]
[Annotator "ChessBase"]
[PlyCount "95"]
[EventDate "2019.06.15"]
[EventType "swiss"]
[EventCountry "CZE"]
[SourceTitle "playchess.com"]
[Source "ChessBase"]
[SourceQuality "1"]
[TimeControl "40/5400+30:1800+30"]

1. c4 {[%emt 0:00:00]} Nf6 {[%emt 0:00:00]} 2. Nc3 {[%emt 0:00:00]} g6 {[%emt 0:00:00]} 3. e4 {[%emt 0:00:00]} d6 {[%emt 0:00:05]} 4. d4 {[%emt 0:00:00]} Bg7 {[%emt 0:00:05]} 5. h3 {[%emt 0:00:08]} O-O {[%emt 0:00:09]} 6. Be3 {[%emt 0:00:04]} e5 {[%emt 0:01:16]} 7. d5 {[%emt 0:00:13]} Nfd7 {[%emt 0:00:49]} 8. g4 {[%emt 0:02:30]} Nb6 {[%emt 0:07:43]} 9. Nf3 {[%emt 0:03:45]} c6 {[%emt 0:01:06]} 10. Rg1 {[%emt 0:13:10]} Na6 {[%emt 0:18:02]} 11. Be2 {[%emt 0:04:43]} cxd5 {[%emt 0:02:46]} 12. cxd5 {[%emt 0:01:10]} Bd7 {[%emt 0:00:08]} 13. a4 {[%emt 0:02:56]} Rc8 {[%emt 0:08:24]} 14. Nd2 {[%emt 0:00:43]} Nc5 {[%emt 0:03:54]} 15. a5 {[%emt 0:03:44]} Na8 {[%emt 0:03:21]} 16. Nc4 {[%emt 0:01:38]} Qc7 {[%emt 0:09:56]} 17. b4 {[%emt 0:06:35]} Na6 {[%emt 0:00:56]} 18. Qb3 {[%emt 0:00:34]} Qb8 {[%emt 0:02:33]} 19. h4 {[%emt 0:05:35]} Rfe8 {[%emt 0:01:19]} 20. g5 {[%emt 0:01:08]} Bf8 {[%emt 0:00:50]} 21. h5 {[%emt 0:02:32]} N8c7 {[%emt 0:03:42]} 22. b5 {[%emt 0:02:56]} Nc5 {[%emt 0:00:22]} 23. Bxc5 {[%emt 0:00:34]} dxc5 {[%emt 0:00:01]} 24. hxg6 {[%emt 0:02:06]} fxg6 {[%emt 0:00:55]} 25. b6 {[%emt 0:08:37]} Na6 {[%emt 0:10:52]} 26. bxa7 {[%emt 0:00:13]} Qxa7 {[%emt 0:00:07]} 27. Nb6 {[%emt 0:00:16]} c4 {[%emt 0:00:50]} 28. Bxc4 {[%emt 0:01:13]} Nc5 {[%emt 0:01:48]} 29. d6+ {[%emt 0:03:59]} Kh8 {[%emt 0:01:05]} 30. Qd1 {[%emt 0:01:24]} Rc6 {[%emt 0:04:07]} 31. Nb5 {[%emt 0:03:35]} Qb8 {[%emt 0:00:21]} 32. Qf3 {[%emt 0:01:42]} Bg7 {[%emt 0:08:47]} 33. Rh1 {[%emt 0:01:28]} Be6 {[%emt 0:00:33]} 34. Bd5 {[%emt 0:04:08]} Rf8 {[%emt 0:03:55]} 35. Qe3 {[%emt 0:00:48]} Rf4 {[%emt 0:04:45]} 36. Bxc6 {[%emt 0:02:27]} bxc6 {[%emt 0:00:03]} 37. Qxc5 {[%emt 0:01:18]} Rxe4+ {[%emt 0:00:13]} 38. Kf1 {[%emt 0:00:47]} Qf8 {[%emt 0:01:37]} 39. Ra3 {[%emt 0:03:40]} cxb5 {[%emt 0:00:21]} 40. a6 {[%emt 0:02:37]} Bc4+ {[%emt 0:00:00]} 41. Nxc4 {[%emt 0:00:00]} Rxc4 {[%emt 0:04:33]} 42. Qd5 {[%emt 0:10:22]} Rc1+ {[%emt 0:04:15]} 43. Kg2 {[%emt 0:00:20]} Rxh1 {[%emt 0:00:07]} 44. Rf3 {[%emt 0:00:36]} Qc8 {[%emt 0:01:19]} 45. d7 {[%emt 0:02:08]} Rg1+ {[%emt 0:00:08]} 46. Kxg1 {[%emt 0:00:07]} Qc1+ {[%emt 0:00:04]} 47. Kh2 {[%emt 0:00:11]} Qg1+ {[%emt 0:00:05]} 48. Kxg1 {[%emt 0:00:06]} 1-0